[Event "37th ECCC 2022"]
[Site "Mayrhofen"]
[Date "2022.10.06"]
[Round "4.44"]
[White "Roseneck, Jonas"]
[Black "Huschenbeth, Niclas"]
[Result "0-1"]
[ECO "D26"]
[WhiteElo "2414"]
[BlackElo "2593"]
[Annotator "TA"]
[PlyCount "116"]
[EventDate "2022.10.03"]
[EventType "team-tourn"]
[EventCountry "AUT"]
[SourceTitle "playchess.com"]
[Source "ChessBase"]
[SourceQuality "1"]
[TimeControl "40/5400+30:1800+30"]

{[%evp 21,116,34,29,24,35,26,44,31,41,20,35,0,0,0,0,-13,-8,-8,-9,-19,-12,-12,-15,-13,0,-24,-21,-21,-17,-14,-21,-20,-4,-4,-5,-4,-3,-3,-4,-5,-2,-5,-4,-8,-11,-27,-26,-78,-85,-136,-114,-126,-121,-133,-117,-135,-127,-112,-47,-50,-47,-48,-50,-50,-47,-54,-8,-81,-48,-53,-37,-37,-37,-37,-37,-920,-875,-892,-709,-29972,-29973,-29975,-29978,-29978,-29979,-29978,-29980,-29980,-29978,-29978,-29979,-29979,-29980,-29981,-29977,-29969,-11410]} 1. d4 {[%emt 0:00:03]} d5 {[%emt 0:00:05]} 2. c4 {[%emt 0:00:10]} dxc4 {[%emt 0:00:04]} 3. Nf3 {[%emt 0:00:02]} Nf6 {[%emt 0:00:09]} 4. e3 {[%emt 0:00:04]} e6 {[%emt 0:00:08]} 5. Bxc4 {[%emt 0:01:02]} c5 {[%emt 0:00:06]} 6. O-O {[%emt 0:03:48]} Nc6 {[%emt 0:00:20]} 7. dxc5 {[%emt 0:05:40]} Qxd1 {[%emt 0:01:05]} 8. Rxd1 {[%emt 0:00:08]} Bxc5 {[%emt 0:00:04]} 9. b3 {[%emt 0:01:39]} a6 {[%emt 0:11:17]} 10. Bb2 {[%emt 0:03:17]} b5 {[%emt 0:01:00]} 11. Be2 {[%emt 0:00:52]} Bb7 {[%emt 0:00:17]} 12. Nbd2 {[%emt 0:02:39] D27: Queen's Gambit Accepted: Classical main line: 7 e4!? and 7 a4.} Be7 {[%emt 0:14:03]} 13. a4 {[%emt 0:20:03]} bxa4 {[%emt 0:00:43]} 14. bxa4 {[%emt 0:08:46] White is slightly better.} O-O {[%emt 0:07:35]} 15. Rab1 {[%emt 0:05:27] [#] Bxf6 is the strong threat.} Nb4 $146 {[%emt 0:12:05]} ({Predecessor:} 15... Rab8 16. Ne5 Rfc8 17. Ndc4 Ba8 18. a5 Nxe5 19. Bxe5 Rxb1 20. Rxb1 Be4 21. Ra1 Rd8 {1-0 (71) Mikhalevski,V (2581)-Xu,X (2567) Chess.com INT 2019}) 16. Bxf6 {[%emt 0:04:12]} gxf6 {[%emt 0:00:09]} 17. Nd4 {[%emt 0:00:20]} Rfc8 {[%emt 0:15:42]} 18. Bf3 {[%emt 0:05:02]} Bxf3 {[%emt 0:00:27]} 19. N2xf3 {[%emt 0:00:17]} Rc7 {[%emt 0:04:33]} 20. Rdc1 {[%emt 0:07:59]} Rac8 {[%emt 0:00:21]} 21. Rxc7 {[%emt 0:00:04]} Rxc7 {[%emt 0:00:04]} 22. g4 {[%emt 0:00:30]} h5 {[%emt 0:10:25]} 23. h3 {[%emt 0:06:21]} hxg4 {[%emt 0:00:24]} 24. hxg4 {[%emt 0:00:01]} Kg7 {[%emt 0:04:37]} 25. Kf1 {[%emt 0:03:07]} Nd5 {[%emt 0:05:05]} 26. Nd2 {[%emt 0:08:21]} Bb4 {[%emt 0:01:19]} 27. Ne4 {[%emt 0:03:41]} a5 {[%emt 0:02:33]} 28. Kg2 {[%emt 0:01:48]} Nb6 {[%emt 0:01:23]} 29. Ra1 {[%emt 0:01:40]} Rc4 {[%emt 0:01:13][%cal Of6f5]} 30. Kf3 {[%emt 0:01:04]} Be7 {[%emt 0:02:58]} 31. Nb3 {[%emt 0:00:39]} Nd7 {[%emt 0:00:44]} 32. Ned2 {[%emt 0:01:41]} Rc2 {[%emt 0:00:23]} 33. Rc1 {[%emt 0:00:52]} Rb2 {[%emt 0:01:26]} 34. Ke2 {[%emt 0:05:09]} (34. Rb1 $1 $11 Rxb1 35. Nxb1) 34... Bb4 $17 {[%emt 0:00:23]} 35. Rb1 {[%emt 0:00:46]} (35. Rc6 $142) 35... Ra2 {[%emt 0:01:39]} 36. Ra1 {[%emt 0:00:38] [#]} Rxa1 {[%emt 0:01:25] Black is more active.} 37. Nxa1 {[%emt 0:00:01][%mdl 4096] Endgame [#] KBN-KNN} Nb6 $1 {[%emt 0:00:58]} 38. Ndb3 {[%emt 0:00:50]} Nxa4 {[%emt 0:00:16]} 39. Nc2 {[%emt 0:00:01]} Nb2 {[%emt 0:01:46]} (39... Nc5 $17 40. Nbd4 Bc3) 40. Nxb4 $15 {[%emt 0:00:41]} axb4 {[%emt 0:00:03] KN-KN} 41. Na5 {[%emt 0:07:27]} Na4 $1 {[%emt 0:01:31]} 42. Kd3 {[%emt 0:01:58]} Nc3 {[%emt 0:13:15]} 43. f3 {[%emt 0:08:18]} Kg6 {[%emt 0:04:39]} (43... Kh6 $15) 44. e4 {[%emt 0:07:30]} (44. Nc6 $11 {remains equal.}) 44... Kg5 {[%emt 0:01:47] Strongly threatening ...Kf4.} 45. Nc6 $1 {[%emt 0:00:52]} Kf4 {[%emt 0:02:14]} 46. Nxb4 {[%emt 0:01:12]} Nb5 {[%emt 0:00:30]} 47. Kc4 {[%emt 0:01:59]} Na7 {[%emt 0:06:35]} 48. Kc5 $2 {[%emt 0:01:49][%mdl 8192] White does not recover from this.} (48. e5 $15) 48... Kxf3 $19 {[%emt 0:00:26]} 49. Kb6 {[%emt 0:02:39] [#]} Kxe4 $1 {[%emt 0:03:47][%cal Of6f5] White must now prevent ...f5!} 50. Kxa7 {[%emt 0:00:01]} (50. Kc5 Nc8) 50... f5 {[%emt 0:00:06] Black mates.} 51. gxf5 {[%emt 0:01:27]} exf5 {[%emt 0:00:01][%cal Be6f5,Bf5f4,Bf4f3,Bf3f2][%mdl 32] KN-KPP} 52. Na2 {[%emt 0:01:06]} f4 {[%emt 0:00:29]} 53. Nc3+ {[%emt 0:00:32]} Kd3 {[%emt 0:00:04]} 54. Nd1 {[%emt 0:00:30]} Ke2 {[%emt 0:01:19]} 55. Nc3+ {[%emt 0:00:04]} Ke1 {[%emt 0:00:51]} 56. Kb6 {[%emt 0:00:59]} f3 {[%emt 0:00:09]} 57. Ne4 {[%emt 0:00:36]} f2 {[%emt 0:00:13]} 58. Ng3 {[%emt 0:00:03]} f5 {[%emt 0:00:14] Weighted Error Value: White=0.33/Black=0.05 (flawless)} 0-1

[Event "37th ECCC 2022"]
[Site "Mayrhofen"]
[Date "2022.10.06"]
[Round "4.45"]
[White "Bogner, Sebastian"]
[Black "Halvax, Georg"]
[Result "1-0"]
[ECO "E06"]
[WhiteElo "2548"]
[BlackElo "2432"]
[Annotator "TA"]
[PlyCount "115"]
[EventDate "2022.10.03"]
[EventType "team-tourn"]
[EventCountry "AUT"]
[SourceTitle "playchess.com"]
[Source "ChessBase"]
[SourceQuality "1"]
[TimeControl "40/5400+30:1800+30"]

{[%evp 10,115,22,0,43,37,70,65,69,80,69,77,92,92,122,104,108,100,159,146,275,273,287,287,370,372,364,363,371,311,344,293,270,201,209,213,198,164,228,230,242,227,222,208,243,246,233,197,199,156,159,104,116,125,329,349,332,340,351,289,349,325,333,310,335,327,329,328,321,311,338,324,340,343,333,337,337,319,327,316,520,514,503,460,460,460,459,437,443,420,538,529,538,517,564,544,556,556,749,739,647,562,997,976,1591,1565,1072,1039]} 1. d4 {[%emt 0:00:03]} d5 {[%emt 0:00:08]} 2. c4 {[%emt 0:00:08]} e6 {[%emt 0:00:06]} 3. Nf3 {[%emt 0:00:05][%cal Bg1f3,Bf3e5,Be5d3,Bd3c5][%mdl 32]} Nf6 {[%emt 0:00:09]} 4. g3 {[%emt 0:00:08]} Be7 {[%emt 0:00:40]} 5. Bg2 {[%emt 0:00:15]} O-O {[%emt 0:00:11]} 6. Nc3 {[%emt 0:00:07]} a6 {[%emt 0:08:01] E06: Closed Catalan: Early deviations.} 7. O-O {[%emt 0:02:29]} Nc6 {[%emt 0:00:42]} 8. Ne5 {[%emt 0:09:51]} Na5 {[%emt 0:09:01] White is slightly better.} 9. cxd5 {[%emt 0:19:49]} exd5 {[%emt 0:01:07]} 10. b3 {[%emt 0:08:09] [#] White is more active.} b5 $146 {[%emt 0:07:04]} ({Predecessor:} 10... c6 11. Qc2 Qb6 12. Rd1 Re8 13. Rb1 Bd6 14. b4 Nc4 15. Nxc4 dxc4 16. e4 Bf8 {1-0 (40) Tran,N (2182)-Le,H Dalat City 2005}) 11. Bb2 {[%emt 0:05:33]} Bb7 {[%emt 0:02:17]} 12. Rc1 {[%emt 0:00:16]} Qd6 {[%emt 0:05:15]} 13. Nd3 {[%emt 0:06:02]} Nc6 {[%emt 0:01:25]} ({Better is} 13... Rad8) 14. Nc5 $16 {[%emt 0:01:39]} Bc8 {[%emt 0:00:35]} (14... Nd8 $16 {is a better defense.} 15. e4 dxe4 16. Nxb7 (16. N3xe4 Bxe4 17. Nxe4 Nxe4 $16) (16. N5xe4 Bxe4 17. Nxe4 Nxe4 $16) 16... Nxb7 17. Nxe4 Nxe4) 15. e4 $18 {[%emt 0:01:20]} Bg4 {[%emt 0:08:00]} 16. f3 {[%emt 0:11:15]} Bh5 {[%emt 0:03:18]} 17. e5 {[%emt 0:03:35]} Nxe5 {[%emt 0:02:37]} 18. dxe5 {[%emt 0:00:04]} Qxe5 {[%emt 0:01:04]} 19. Nd3 {[%emt 0:00:05]} Qd6 {[%emt 0:01:48]} 20. Nf4 {[%emt 0:02:10]} Rad8 {[%emt 0:02:05]} 21. Nxh5 {[%emt 0:02:01]} Nxh5 {[%emt 0:01:59]} 22. f4 {[%emt 0:00:55]} Nf6 {[%emt 0:08:35]} 23. Kh1 {[%emt 0:02:21]} d4 {[%emt 0:05:22]} (23... c5 $142 24. Re1 Rfe8) 24. Ne4 {[%emt 0:00:41]} Nxe4 {[%emt 0:00:06]} 25. Bxe4 {[%emt 0:00:05]} c5 {[%emt 0:00:07]} 26. Bd3 {[%emt 0:04:24]} Qb6 {[%emt 0:04:52][%cal Oc5c4]} 27. Re1 {[%emt 0:01:31]} Rfe8 {[%emt 0:01:09][%cal Oc5c4]} 28. Qc2 {[%emt 0:04:24] Against c4} (28. Qh5 g6 29. Qe2 Bf8) 28... g6 {[%emt 0:05:02]} 29. Re4 {[%emt 0:06:19]} Bf8 {[%emt 0:02:37]} 30. Rce1 {[%emt 0:01:59]} (30. Re2 $142) 30... Rxe4 $16 {[%emt 0:00:19]} 31. Rxe4 {[%emt 0:00:20]} (31. Bxe4 c4 $14) 31... Rc8 $2 {[%emt 0:03:31] Loses the game.} (31... Qc6 $16 32. Kg1 Rc8) 32. Bxd4 $18 {[%emt 0:06:23]} Qb7 {[%emt 0:00:23]} 33. Bf6 {[%emt 0:00:17]} Qc6 {[%emt 0:04:58]} 34. Bb2 {[%emt 0:00:22] Hoping for Qc3.} Bg7 35. Bxg7 {[%emt 0:00:25]} f5 {[%emt 0:08:23]} 36. Bb2 {[%emt 0:00:40][%cal Oc2c3] [#] Threatening mate with Qc3!} fxe4 {[%emt 0:00:28]} 37. Bxe4 {[%emt 0:00:04] A strong pair of Bishops.} Qd7 {[%emt 0:00:04]} 38. Bf3 {[%emt 0:01:00]} Rd8 {[%emt 0:00:50]} 39. Qe4 {[%emt 0:01:57] Threatens to win with Qe5.} (39. Qxc5 Qd3 40. Bg4 Qe4+ 41. Kg1 Qe1+ 42. Kg2 Rd2+ 43. Kh3 Rxb2 $11) 39... Qf5 {[%emt 0:01:37]} 40. Qe2 {[%emt 0:00:43] Against Rd1+} Kf7 {[%emt 0:01:14]} 41. Kg2 {[%emt 0:02:44]} ({Much less strong is} 41. Bg4 Qd5+ 42. Kg1 h5) 41... Qd3 {[%emt 0:02:45] [#] aiming for ...Qxe2+.} 42. Kf2 {[%emt 0:08:22]} ({Less strong is} 42. Qe5 Qc2+ 43. Kh3 (43. Be2 Rd2 $11) 43... Qf5+ 44. Qxf5+ gxf5 $16) 42... Qd2 {[%emt 0:01:14]} 43. Kf1 {[%emt 0:00:01]} Qd6 {[%emt 0:10:26]} 44. Qe3 {[%emt 0:04:07]} c4 $2 {[%emt 0:04:23]} (44... Qd3+ 45. Qxd3 Rxd3) 45. bxc4 {[%emt 0:01:22]} bxc4 {[%emt 0:00:13]} 46. Qc3 {[%emt 0:00:54] Black must now prevent Qg7+.} Qd3+ {[%emt 0:03:12]} 47. Be2 {[%emt 0:03:29]} Qxc3 {[%emt 0:02:19]} 48. Bxc3 {[%emt 0:00:03]} Rc8 {[%emt 0:00:04]} 49. Ke1 {[%emt 0:00:15]} Rc7 {[%emt 0:00:34]} 50. Be5 {[%emt 0:01:14] White is clearly winning.} Rc5 {[%emt 0:00:02]} 51. Bd4 {[%emt 0:00:46]} Rc7 {[%emt 0:00:14]} 52. Kd2 {[%emt 0:02:29]} Ke6 {[%emt 0:00:02]} 53. Kc3 {[%emt 0:00:14]} Kd5 {[%emt 0:00:05]} 54. Bf3+ {[%emt 0:00:46]} Ke6 {[%emt 0:00:02]} 55. Be4 {[%emt 0:00:37]} Rc8 {[%emt 0:00:20]} 56. Bb7 {[%emt 0:01:37][%csl LRa6,LRc8]} Rc7 {[%emt 0:00:08]} 57. Bxa6 {[%emt 0:00:58]} Kd5 {[%emt 0:00:06]} 58. a4 {[%emt 0:00:30] Weighted Error Value: White=0.15 (very precise) /Black=0.29 (precise)} 1-0

[Event "37th ECCC 2022"]
[Site "Mayrhofen"]
[Date "2022.10.06"]
[Round "4.46"]
[White "Michalczak, Thomas"]
[Black "Johansson, Linus"]
[Result "0-1"]
[ECO "C11"]
[WhiteElo "2254"]
[BlackElo "2461"]
[Annotator "TA"]
[PlyCount "70"]
[EventDate "2022.10.03"]
[EventType "team-tourn"]
[EventCountry "AUT"]
[SourceTitle "playchess.com"]
[Source "ChessBase"]
[SourceQuality "1"]
[TimeControl "40/5400+30:1800+30"]

{[%evp 13,70,0,4,0,24,21,18,21,23,13,22,13,30,-16,-8,-43,-41,-74,135,158,166,181,140,-10,-8,-16,-26,-179,-52,-154,-148,-335,-338,-321,-329,-575,-562,-556,-558,-535,-470,-612,-605,-589,-516,-513,-501,-765,-742,-691,-632,-12839,-12839,-12835,-12835,-12837,-12836,-12841,-12841]} 1. e4 {[%emt 0:00:06]} e6 {[%emt 0:00:03]} 2. d4 {[%emt 0:00:04]} d5 {[%emt 0:00:03]} 3. Nc3 {[%emt 0:00:05]} Nf6 {[%emt 0:00:03]} 4. e5 {[%emt 0:00:06]} Nfd7 {[%emt 0:00:03]} 5. f4 {[%emt 0:00:07]} c5 {[%emt 0:00:04]} 6. Nf3 {[%emt 0:00:04]} Nc6 {[%emt 0:00:03]} 7. Be3 {[%emt 0:00:05]} Be7 {[%emt 0:00:04]} 8. a3 {[%emt 0:00:06] C11: French: Classical System: 4 e5 and 4 Bg5 dxe4.} O-O {[%emt 0:00:26]} 9. dxc5 {[%emt 0:00:05]} Nxc5 {[%emt 0:00:07]} 10. Be2 {[%emt 0:00:09] The position is equal.} a6 {[%emt 0:09:07]} 11. O-O {[%emt 0:00:07]} b5 {[%emt 0:01:28]} 12. Kh1 {[%emt 0:05:05]} Qc7 {[%emt 0:04:32] [#]} 13. f5 $146 {[%emt 0:19:25]} (13. Qe1 {might be stronger.}) ({Predecessor:} 13. Nd4 Nxd4 14. Bxd4 f6 15. Rf3 fxe5 16. Bxe5 Bd6 17. Nxd5 exd5 18. Qxd5+ Be6 19. Qxd6 Qxd6 20. Bxd6 {1-0 (38) Jakab,B (2164)-Brnusak,A (1830) Liptovsky Mikulas 2017}) 13... Nxe5 $11 {[%emt 0:06:54] next ...Ng4 is good for Black.} 14. Nxe5 {[%emt 0:00:09]} (14. Bf4 $5 {[%cal Rf4e5]} Bd6 15. fxe6 Bxe6 16. Nxd5 Bxd5 17. Qxd5 $11) 14... Qxe5 {[%emt 0:00:06]} 15. Bd4 {[%emt 0:00:06]} Qc7 {[%emt 0:03:31]} (15... Qd6 $17 {keeps the pressure on.}) 16. f6 $1 $16 {[%emt 0:00:36]} gxf6 {[%emt 0:21:16]} 17. Qd2 {[%emt 0:18:31]} f5 {[%emt 0:09:56]} 18. Qh6 {[%emt 0:08:42]} (18. Rf3 $1 $16 {[%cal Rf3g3]} f4 19. Rxf4) 18... f6 $11 {[%emt 0:00:18] With the idea ...Rf7.} 19. Rf3 {[%emt 0:03:15] Rg3+ is the strong threat.} Bd6 {[%emt 0:02:01] Inhibits Rg3+. White must now prevent ...Qg7.} (19... Rf7 $2 20. Rg3+ Qxg3 21. hxg3 $18) 20. g4 $2 {[%emt 0:11:21] [#] White is on the road to losing.} (20. Bxf6 $11 {and White stays safe.} Qf7 21. Bd4) 20... f4 {[%emt 0:09:42]} (20... e5 $1 $19 {[%cal Re5d4]} 21. Nxd5 Qf7) 21. g5 {[%emt 0:01:29] [#]} ({White has to play} 21. Bxf6 $15 Rxf6 22. Qxf6) 21... Qg7 $1 $17 {[%emt 0:03:28]} 22. Qh4 {[%emt 0:13:08]} (22. Qxg7+ $17 Kxg7 23. gxf6+ Kh8 24. Bxc5 Bxc5 25. Rxf4) 22... e5 $19 {[%emt 0:05:21]} (22... Qxg5 23. Rg1 Qxg1+ 24. Bxg1 $18) (22... fxg5 23. Bxg7 gxh4 24. Rg1 $17) 23. gxf6 {[%emt 0:01:53]} Qxf6 {[%emt 0:00:42] Really sharp!} ({Stronger than} 23... Rxf6 24. Rg1 Rg6 25. Rxg6 (25. Bxc5 $2 Rxg1+ 26. Bxg1 Bb7 $19) 25... Qxg6 26. Bxc5 Bxc5 27. Qd8+ Kg7 28. Qc7+ Kh8 29. Qxe5+ (29. Qxc5 Bb7 $17) 29... Qg7 30. Qxg7+ Kxg7 31. Rxf4 $17) 24. Rg1+ $2 {[%emt 0:05:10]} (24. Qxf6 Rxf6 25. Bxc5 Bxc5 26. Rd3) 24... Kh8 {[%emt 0:00:24] Black is clearly winning.} 25. Qxf6+ {[%emt 0:09:12]} Rxf6 {[%emt 0:00:06]} 26. Nxd5 {[%emt 0:00:06]} Rf7 {[%emt 0:06:34]} 27. Bxc5 {[%emt 0:02:49]} Bxc5 {[%emt 0:00:07]} 28. Rg5 {[%emt 0:00:12]} Rf5 {[%emt 0:03:57]} 29. Rxf5 {[%emt 0:01:40]} Bxf5 {[%emt 0:00:06] This bishop pair is nice.} 30. Bd3 {[%emt 0:00:03]} (30. Nc3 $142 Rg8 31. h3) 30... e4 {[%emt 0:03:13][%cal Be5e4,Be4d3,Bd3c2][%mdl 32]} 31. Rxf4 {[%emt 0:00:25]} exd3 {[%emt 0:00:05]} 32. Rxf5 {[%emt 0:00:05]} dxc2 {[%emt 0:00:13]} 33. Rf1 {[%emt 0:00:30]} Rd8 {[%emt 0:01:07]} 34. Nc3 {[%emt 0:00:25]} Be3 {[%emt 0:00:08]} 35. Ne2 {[%emt 0:00:12]} Rd1 {[%emt 0:00:11] Weighted Error Value: White=0.69/Black=0.33} 0-1

[Event "37th ECCC 2022"]
[Site "Mayrhofen"]
[Date "2022.10.06"]
[Round "4.47"]
[White "Fedorovsky, Michael"]
[Black "Berg, Michael"]
[Result "1-0"]
[ECO "D12"]
[WhiteElo "2410"]
[BlackElo "2313"]
[Annotator "TA"]
[PlyCount "115"]
[EventDate "2022.10.03"]
[EventType "team-tourn"]
[EventCountry "AUT"]
[SourceTitle "playchess.com"]
[Source "ChessBase"]
[SourceQuality "1"]
[TimeControl "40/5400+30:1800+30"]

{[%evp 12,115,26,24,30,16,26,17,29,16,27,11,31,8,27,13,26,20,20,-16,-20,-54,-33,-50,-61,-63,-50,-58,-52,-86,-68,-97,0,0,0,-2,98,85,87,95,143,120,160,156,157,125,125,118,118,118,117,110,127,127,127,106,127,127,127,127,128,127,141,141,169,141,162,154,154,154,204,204,250,250,539,518,1164,227,1452,1310,29962,11838,29969,29968,29972,29972,29973,29974,29972,29968,29975,29976,29979,29979,29980,29981,29980,29981,29984,29985,29987,29988,29988,29987,29988,29989]} 1. d4 {[%emt 0:00:06]} d5 {[%emt 0:00:10]} 2. c4 {[%emt 0:00:09]} c6 {[%emt 0:00:06]} 3. Nf3 {[%emt 0:00:45]} Nf6 {[%emt 0:00:16]} 4. e3 {[%emt 0:01:07]} Bf5 {[%emt 0:00:52]} 5. Nc3 {[%emt 0:00:08]} e6 {[%emt 0:01:21]} 6. Nh4 {[%emt 0:01:19]} Be4 {[%emt 0:01:15]} 7. f3 {[%emt 0:00:17]} Bg6 {[%emt 0:00:32] D12: Slav Defence: 3 Nf3 Nf6 4 e3 Bf5.} 8. Bd2 {[%emt 0:02:06]} Be7 {[%emt 0:02:54]} 9. g3 {[%emt 0:05:26]} c5 {[%emt 0:20:02] The position is equal.} 10. dxc5 {[%emt 0:14:53] [#]} Bxc5 $146 {[%emt 0:03:25]} ({Predecessor:} 10... dxc4 11. Nxg6 hxg6 12. Bxc4 Bxc5 13. O-O a6 14. Qe2 Nc6 15. Rfd1 Ne5 16. Bb3 g5 {½-½ (58) Husak,J (2061)-Pavlicek,M (2252) ICCF email 2013}) 11. cxd5 {[%emt 0:03:21]} exd5 {[%emt 0:00:38]} 12. Qb3 {[%emt 0:12:42]} O-O $1 {[%emt 0:08:46]} 13. Nxg6 {[%emt 0:12:55]} hxg6 {[%emt 0:00:19]} 14. Na4 {[%emt 0:07:46]} Bd6 {[%emt 0:06:44]} 15. Kf2 {[%emt 0:05:09]} Nc6 {[%emt 0:04:58]} 16. Rc1 {[%emt 0:08:56]} Qe7 {[%emt 0:03:45]} 17. Be2 {[%emt 0:02:41]} Rfe8 {[%emt 0:04:14]} 18. Rhe1 {[%emt 0:00:12]} g5 {[%emt 0:04:09][%cal Og5g4]} 19. Kg2 {[%emt 0:09:51]} Rad8 {[%emt 0:06:40][%cal Og5g4]} 20. Nc3 {[%emt 0:04:13]} a6 {[%emt 0:02:25]} (20... d4 $6 21. exd4 Nxd4 22. Qd1 $15) 21. Qa4 {[%emt 0:03:12][%cal Oe3e4]} ({Don't blunder} 21. Nxd5 $2 Nxd5 22. e4 (22. Qxd5 $2 Bb8 $19) 22... Nd4 $1 $19) 21... g4 {[%emt 0:15:43]} (21... Bb4 $17) 22. fxg4 $11 {[%emt 0:00:34]} Qe6 {[%emt 0:00:38]} 23. g5 {[%emt 0:00:45]} Ne4 {[%emt 0:00:39]} (23... Nd7 $11) 24. Nxe4 $16 {[%emt 0:00:07]} dxe4 {[%emt 0:00:58]} 25. Bc3 {[%emt 0:01:35]} Qf5 {[%emt 0:05:48] [#]} (25... Qg6 $142) 26. h4 $1 {[%emt 0:00:46]} Ne5 {[%emt 0:02:07]} 27. Rf1 {[%emt 0:00:11] Prevents Nf3. Really sharp!} Qg6 {[%emt 0:01:29]} 28. Bxe5 {[%emt 0:01:54] White is more active.} Bxe5 {[%emt 0:00:09]} 29. Rcd1 {[%emt 0:00:08] Black must now prevent Rxd8.} b5 {[%emt 0:01:35]} 30. Qb3 {[%emt 0:00:24]} Rxd1 {[%emt 0:00:44]} 31. Rxd1 {[%emt 0:00:06]} Qe6 {[%emt 0:00:54] Prevents Bg4.} 32. Qxe6 {[%emt 0:00:11]} Rxe6 {[%emt 0:00:02][%mdl 4096] Endgame KRB-KRB} 33. Rd2 {[%emt 0:00:46]} Rd6 {[%emt 0:00:16]} 34. Rxd6 {[%emt 0:00:37]} Bxd6 {[%emt 0:00:01] KB-KB} 35. Bg4 {[%emt 0:00:21]} Be5 {[%emt 0:01:39]} 36. b3 {[%emt 0:00:04][%cal Bb2b3,Bb3b4][%mdl 32]} f6 {[%emt 0:00:31]} 37. gxf6 {[%emt 0:00:30]} Bxf6 {[%emt 0:00:01]} 38. Bf5 {[%emt 0:00:49]} Kf7 {[%emt 0:00:03]} 39. Bxe4 {[%emt 0:00:11]} Ke6 {[%emt 0:00:14]} 40. Kf3 {[%emt 0:00:40]} Ke5 {[%emt 0:00:22]} (40... b4 $16 41. Bb7 a5) 41. b4 $18 {[%emt 0:09:42] Bb7 is the strong threat.} Be7 {[%emt 0:04:47]} 42. Bb7 {[%emt 0:00:18]} Kd6 $2 {[%emt 0:00:17]} (42... g5 {was necessary.} 43. h5 Bxb4 44. Bxa6 Kf6 45. Bxb5 Bf8) 43. Bxa6 {[%emt 0:00:25]} Kc6 {[%emt 0:00:08]} (43... Kd5 $142 44. Bxb5 Bxb4) 44. Ke4 {[%emt 0:13:15]} Bxb4 $2 {[%emt 0:00:40]} (44... g6 45. a3 Bf6) 45. h5 {[%emt 0:00:49][%cal Oa6b5] Threatens to win with Bxb5+!} Kb6 {[%emt 0:01:39] [#]} 46. Bxb5 $1 {[%emt 0:04:43][%cal Og3g4][%mdl 512] White wants to mate with g4!} Kxb5 {[%emt 0:00:19] KB-KP} (46... Kb7 47. Kd5) 47. Kd5 {[%emt 0:00:02] White mates.} Kb6 {[%emt 0:18:33]} 48. Ke6 {[%emt 0:00:14]} Kc6 {[%emt 0:00:55]} 49. g4 {[%emt 0:00:27][%cal Bg3g4,Bg4g5,Bg5h6,Bh6h7][%mdl 32]} Bc3 {[%emt 0:00:40]} 50. a4 {[%emt 0:03:28]} Kc5 {[%emt 0:04:23]} 51. e4 {[%emt 0:00:23][%cal Be3e4,Be4e5,Be5e6][%mdl 32]} Kd4 {[%emt 0:01:25]} 52. Kf5 {[%emt 0:00:35]} Kc5 {[%emt 0:00:29]} 53. g5 {[%emt 0:02:43]} Kd6 {[%emt 0:00:34]} 54. h6 {[%emt 0:00:56]} gxh6 {[%emt 0:00:36]} 55. gxh6 {[%emt 0:00:03]} Ke7 {[%emt 0:00:16]} 56. e5 {[%emt 0:00:47]} Kf7 {[%emt 0:00:07]} 57. e6+ {[%emt 0:00:06]} Kf8 {[%emt 0:00:49]} 58. h7 {[%emt 0:00:41] Weighted Error Value: White=0.06 (flawless) /Black=0.41} 1-0